Cogmind - Beta 17 @@@ ROGUE MODE // 2026.08.05 @ 20:15:56 Player: 50l Result: Destroyed by Y-72 Warden with Railgun Performance ------------- Evolutions (8) 4000 Regions Visited (15) 3000 Robots Destroyed (97) 485 Value Destroyed (3291) 3291 Prototype IDs (54) 1080 Alien Tech Used (0) 0 Bonus (7512) 7512 TOTAL SCORE: 19368 Bonus ------- High Alert Combat Kills 124 Follower Combat Kills 2888 Hunted by Unchained 500 Network Hubs Disabled 400 Built Enhanced Grunts 300 A7 Reached Mainframe 300 Met R17 at Cetus 500 Hacked Protovariant 500 Met R17 at Research 2000 Cogmind --------- Core Integrity 0/1450 Matter 265/300 Energy 98/100 System Corruption 6% Temperature Cool (9) Movement Core (50) Location -2/Research Parts ------- > --- POWER (2) -------- (None) > --- PROPULSION (6) --- (None) > --- UTILITY (9) ------ (None) > --- WEAPON (6) ------- (None) > --- INVENTORY (5) ---- 2N-1CE's Frost Array Experimental Actuator Array Fusion Bomb Launcher Advanced Remote Datajack Nanosword Peak State ------------ > --- POWER ------------ Light Quantum Reactor > --- PROPULSION ------- Impulse Thruster Impulse Thruster Field Propulsion Array Impulse Thruster Array > --- UTILITY ---------- Large Storage Unit Triangulator Spectral Analyzer Experimental Signal Interpreter Improved Hacking Suite Advanced Hacking Suite Advanced System Shield Experimental System Shield Advanced Component Analysis Suite > --- WEAPON ----------- Power Sword Molecular Scythe Centrium Greatsword Nanosword > --- INVENTORY -------- Light Quantum Reactor Experimental Biometal Medium Treads Field Propulsion Array 2N-1CE's Frost Array High-capacity Storage Unit Experimental Matter Compressor Experimental Target Analyzer Experimental Actuator Array Experimental Reaction Control System Centrium Medium Armor Plating Graphene Brace Experimental Focal Shield Long-range Phase Cannon Advanced Remote Datajack [Rating: 159] Favorites ----------- Power Light Antimatter Reactor Engine Ion Engine Power Core Neutrino Core Reactor Light Antimatter Reactor Propulsion Impulse Thruster Treads Improved Treads Leg Aluminum Leg Wheel Compact Wheel Flight Unit Impulse Thruster Utility Medium Storage Unit Device Graphene Brace Storage Medium Storage Unit Processor Improved Signal Interpreter Hackware Hacking Suite Protection Makeshift Light Armor Plating Weapon KE Penetrator Energy Gun Medium Laser Energy Cannon Powered Cannon Ballistic Gun KE Penetrator Ballistic Cannon Battle Cannon Launcher Long-range Missile Launcher Slashing Weapon Power Sword Piercing Weapon Spear Build | -11 -10 -10 -10 -7 -5 -5 -5 -4 -4 -4 -4 -4 -3 -3 -2 ------- Run | Yrd Mat Min Sub Rec Fac Upp Upp Fac Ext Cet Arc Hub Res Tes Res Slots Evolved 16 | . . . . . 10 . . 2 . . . . 2 . 2 Power 1 | . . . . . . . . 1 . . . . . . . Propulsion 4 | . . . . . 3 . . 1 . . . . . . . Utility 7 | . . . . . 6 . . . . . . . . . 1 Weapon 4 | . . . . . 1 . . . . . . . 2 . 1 Parts Attached 142 | 7 2 1 8 3 31 1 4 5 20 6 1 4 26 6 17 Power 15 | 1 . . 2 . 2 . 1 1 2 1 . . 3 1 1 Engine 3 | 1 . . 2 . . . . . . . . . . . . Core 3 | . . . . . 2 . 1 . . . . . . . . Reactor 9 | . . . . . . . . 1 2 1 . . 3 1 1 Propulsion 38 | 2 . . 2 2 8 . 1 1 7 1 . 2 7 2 3 Treads 13 | . . . 1 . 2 . . . 6 1 . 2 . . 1 Leg 2 | 2 . . . . . . . . . . . . . . . Wheel 5 | . . . 1 2 2 . . . . . . . . . . Hover . | . . . . . . . . . . . . . . . . Flight 18 | . . . . . 4 . 1 1 1 . . . 7 2 2 Utility 63 | 2 2 . 2 1 17 1 1 3 5 2 1 2 13 3 8 Device 30 | 1 1 . 1 . 11 1 . 2 3 . . 1 5 2 2 Storage 7 | 1 1 . . 1 1 . . . 1 . . . 2 . . Processor 6 | . . . . . 1 . 1 1 . . . . 1 1 1 Hackware 11 | . . . . . 2 . . . . 1 1 . 5 . 2 Protection 9 | . . . 1 . 2 . . . 1 1 . 1 . . 3 Artifact . | . . . . . . . . . . . . . . . . Weapon 26 | 2 . 1 2 . 4 . 1 . 6 2 . . 3 . 5 Energy Gun 4 | 2 . . . . 1 . . . . 1 . . . . . Energy Cannon 2 | . . . 1 . . . . . . . . . . . 1 Ballistic Gun 5 | . . 1 . . . . . . 2 1 . . 1 . . Ballistic Cannon 1 | . . . 1 . . . . . . . . . . . . Launcher 3 | . . . . . 2 . . . 1 . . . . . . Special Weapon . | . . . . . . . . . . . . . . . . Impact Weapon . | . . . . . . . . . . . . . . . . Slashing Weapon 10 | . . . . . 1 . 1 . 3 . . . 1 . 4 Piercing Weapon 1 | . . . . . . . . . . . . . 1 . . Special Melee Weapon . | . . . . . . . . . . . . . . . . Unidentified Prototypes 16 | . . . 1 . 3 . . 1 . 4 . . 5 . 2 Parts Lost 66 | . 1 . 3 . 16 . 1 1 11 . . 13 2 4 14 Power 7 | . . . 1 . 1 . 1 . 2 . . 2 . . . Propulsion 23 | . . . . . 3 . . 1 5 . . 4 1 3 6 Utility 27 | . 1 . 1 . 9 . . . 2 . . 4 1 1 8 Weapon 9 | . . . 1 . 3 . . . 2 . . 3 . . . Highest Loss Streak 14 | . 1 . 1 . 14 . 1 1 6 . . 13 1 3 7 To Critical Strikes . | . . . . . . . . . . . . . . . . Average Backups 12 | 3 8 10 9 17 18 9 9 9 11 19 19 18 9 14 12 Power . | . 1 1 . . . 1 . . . . 1 . 1 2 1 Propulsion 2 | 2 5 4 3 4 5 1 1 1 . . . . 1 1 1 Utility 6 | . 1 2 2 8 7 6 6 6 8 13 13 12 4 7 6 Weapon 2 | . . 1 1 2 2 . 1 2 1 4 5 4 1 2 1 Tool/Special . | . . . . . . . . . . . . . . . . Unused Backups 50 | . 2 1 . 1 5 1 . . 1 . 2 8 3 13 13 Power 4 | . . . . 1 . . . . . . . 1 . 1 1 Propulsion 3 | . 1 1 . . . . . . . . . . 1 . . Utility 27 | . 1 . . . 2 1 . . 1 . 2 3 2 7 8 Weapon 10 | . . . . . . . . . . . . 3 . 4 3 Tool/Special 6 | . . . . . 3 . . . . . . 1 . 1 1 Average Slot Usage (%) 80 | . 98 99 99 72 61 80 81 79 81 89 89 83 58 77 65 Engine 4 | . 14 14 13 12 3 . . . . . . . . . . Reactor 3 | . . . . . . . . 3 7 10 10 9 3 6 3 Treads 5 | . . . 12 2 . . . . 13 21 21 19 . . . Leg 4 | . 28 28 2 . . . . . . . . . . . . Wheel 3 | . . . 12 20 10 . . . . . . . . . . Flight 8 | . . . . . 5 23 23 26 7 . . . 16 22 14 Device 11 | . 13 14 4 . 16 27 25 13 11 6 9 9 8 11 6 Storage 7 | . 14 14 13 12 5 5 5 5 5 5 5 4 2 4 3 Processor 5 | . . . . . . 5 8 14 15 15 15 14 3 4 7 Hackware 6 | . . . . . 5 5 5 5 5 8 5 4 15 16 15 Protection 3 | . . . 8 12 3 . . . 2 5 5 4 . . 2 Energy Gun 3 | . 28 18 3 . . . . . . . . . . . . Energy Cannon 1 | . . . . 12 3 . . . . . . . . . . Ballistic Gun 4 | . . 9 13 . . . . . 4 14 15 13 . . . Ballistic Cannon 1 | . . . 10 . . . . . . . . . . . . Slashing Weapon 2 | . . . . . 2 5 4 5 3 . . . 3 4 9 Peak Build Rating 159 | 7 8 12 25 35 72 58 63 75 96 118 124 126 119 127 159 Average Rating 67 | 5 7 10 15 28 54 56 60 69 80 110 122 117 84 120 126 On Entrance 56 | . 7 8 12 24 35 51 58 63 75 95 118 124 13 114 108 Avg Prop Armor Cover (%) 10 | . . . 11 11 8 . . . 1 . . . . . 26 Naked Turns . | . . . . . . . . . . . . . . . . Heaviest Build 111 | 15 20 20 28 98 111 32 32 31 95 100 101 101 48 48 51 Greatest Support 201 | 20 20 20 20 36 68 37 39 43 162 196 196 201 50 52 51 Greatest Overweight (x) 6 | 1 . . 1 6 3 . . . 2 . . . 1 . . Average Overweight (x) . | . . . . 2 . . . . . . . . . . . Largest Inventory Capacity 25 | 8 10 10 10 25 25 10 10 10 20 20 20 20 15 15 15 Average Capacity 14 | 7 9 10 10 24 21 10 10 10 15 20 20 19 10 15 13 Most Carried 25 | 5 10 10 10 24 25 10 10 10 20 20 20 20 15 15 15 Average Carried 12 | 3 8 10 9 17 18 9 9 9 11 19 19 19 9 14 12 Final Capacity 25 | 8 10 10 10 25 10 10 10 10 20 20 20 5 15 15 5 Final Carried 24 | 5 10 10 8 24 7 10 10 9 19 20 20 5 15 15 5 Class Distribution -------------------- 36% | Mutant 20% | Hacker-Sprinter 14% | Scavenger-Tank 7% | Scavenger-Sprinter 5% | Hacker-Mutant 4% | Scavenger-Mutant 3% | Scout Dominant Class ---------------- Mutant | -10/Materials Mutant | -10/Mines Mutant | -10/Subcaves Mutant | -7/Recycling Mutant | -5/Factory Scavenger-Sprinter | -5/Upper Caves Scavenger-Sprinter | -5/Upper Caves Derelict-Scout | -4/Factory Scavenger-Tank | -4/Extension Scavenger-Tank | -4/Cetus Scavenger-Tank | -4/Archives Scavenger-Tank | -4/Hub_04(d) Hacker-Sprinter | -3/Research Hacker-Sprinter | -3/Testing Hacker-Sprinter | -2/Research Resources | -11 -10 -10 -10 -7 -5 -5 -5 -4 -4 -4 -4 -4 -3 -3 -2 ----------- Run | Yrd Mat Min Sub Rec Fac Upp Upp Fac Ext Cet Arc Hub Res Tes Res Matter Collected 3511 | 270 20 . 373 42 370 176 325 . 416 206 116 153 854 58 132 Remotely . | . . . . . . . . . . . . . . . . Salvage Created 3843 | 164 440 . 271 66 542 . . . 781 149 151 564 342 91 282 Parts 197 | 10 41 . 18 1 31 . . . 26 11 11 24 11 1 12 Haulers Intercepted 7 | . 2 . . . . . . . 1 . . 2 2 . . Recyclers Shooed 3 | . . . . . . . . . 2 . . 1 . . . Parts Field Recycled . | . . . . . . . . . . . . . . . . Retrieved Matter . | . . . . . . . . . . . . . . . . Parts Self-Destructed 17 | . . . 1 . . 7 9 . . . . . . . . Prevented . | . . . . . . . . . . . . . . . . Parts Restored . | . . . . . . . . . . . . . . . . Kills | -11 -10 -10 -10 -7 -5 -5 -5 -4 -4 -4 -4 -4 -3 -3 -2 ------- Run | Yrd Mat Min Sub Rec Fac Upp Upp Fac Ext Cet Arc Hub Res Tes Res Combat Hostiles Destroyed 52 | . 15 . 9 . 15 . . . 7 2 . 1 . 2 1 Melee 5 | . . . . . . . . . 2 . . . . 2 1 Guns 24 | . 15 . 5 . . . . . 1 2 . 1 . . . Cannons 6 | . . . 4 . 2 . . . . . . . . . . AOE 16 | . . . . . 12 . . . 4 . . . . . . Classes Destroyed 15 | 2 5 . 1 . 4 . . . 1 . . 1 . 1 . Worker 4 | . . . . . 3 . . . . . . 1 . . . Builder 4 | . . . . . 2 . . . 1 . . 1 . . . Tunneler 3 | 3 . . . . . . . . . . . . . . . Hauler 7 | . 2 . . . . . . . 1 . . 2 2 . . Recycler 5 | 1 . . . . . . . . 2 . . 2 . . . Operator 8 | . 2 . . . 1 . . . . . 4 . . . 1 Drone 2 | . . . . . . . . . . . . . . 2 . Watcher 16 | . 3 . . . . . . . 2 . . . 3 2 6 Swarmer 17 | . 12 . . . . . . . 4 . . . . . 1 Grunt 15 | . 3 . . . 10 . . . 2 . . . . . . Duelist 2 | . . . . . 2 . . . . . . . . . . Sentry 1 | . . . . . . . . . 1 . . . . . . Hunter 1 | . . . . . . . . . . . . 1 . . . Programmer 3 | . . . . . 3 . . . . . . . . . . Cetus Guard 2 | . . . . . . . . . . 2 . . . . . Subdweller 9 | . . . 9 . . . . . . . . . . . . Best Kill Streak 8 | 2 5 . 3 . 8 . . . 4 1 4 2 1 1 2 Combat Bots Only 8 | . 3 . 3 . 8 . . . 4 1 . 1 . 1 1 Max Kills in Single Turn 2 | 1 2 . 1 . 2 . . . 2 1 1 2 1 1 1 Gunslinging 1 | . 1 . . . . . . . . . . . . . . Exploded 2 | . . . . . 2 . . . 2 . . . . . . Melee 1 | . . . . . . . . . 1 . . . . 1 1 Uniques/NPCs Destroyed . | . . . . . . . . . . . . . . . . Combat | -11 -10 -10 -10 -7 -5 -5 -5 -4 -4 -4 -4 -4 -3 -3 -2 -------- Run | Yrd Mat Min Sub Rec Fac Upp Upp Fac Ext Cet Arc Hub Res Tes Res Hostile Shots Fired 920 | . 51 . 41 . 153 2 22 12 84 14 9 214 7 72 239 Missed 343 | . 15 . 11 . 48 . 11 7 22 6 1 65 . 41 116 Hits 577 | . 36 . 30 . 105 2 11 5 62 8 8 149 7 31 123 Melee 15 | . . . . . 6 . . . 1 . . 3 . . 5 Projectile 562 | . 36 . 30 . 99 2 11 5 61 8 8 146 7 31 118 AOE 2 | . . . . . . . . . . . . . . . 2 Critical Strikes 36 | . . . 2 . 7 . 1 . 3 1 . 9 1 1 11 Actively Blocked 17 | . . . . . . . . . 3 . . 9 1 . 4 Part Disruptions 2 | . . . . . . . . . 1 . . . . . 1 Actively Blocked 1 | . . . . . . . . . . . . . . . 1 Damage Taken 12156 | . 333 . 677 . 2256 34 224 97 1395 190 204 2891 254 504 3097 Core 3348 | . 91 . 137 . 506 . 88 28 222 . . 633 56 122 1465 Absorbed by Shields 138 | . . . . . . . . . 33 80 . . . . 25 Redirected to Shielding 154 | . . . . . 33 . . . . . . . . . 121 Core Remaining (%) 51 | 100 . . . 8 . . 40 . . . . 23 . 86 . Volleys Fired 221 | 11 47 . 52 7 42 . . . 20 13 8 20 . . 1 Largest 3 | 2 2 . 2 1 2 . . . 2 3 3 3 . . 1 Hottest 105 | 100 100 . 83 40 70 . . . 66 101 101 101 . . 105 Shots Fired 392 | 22 86 . 79 7 46 . . . 34 33 24 60 . . 1 Gun 295 | 22 86 . 36 . 4 . . . 30 33 24 60 . . . Cannon 77 | . . . 43 7 26 . . . . . . . . . 1 Launcher 20 | . . . . . 16 . . . 4 . . . . . . Special . | . . . . . . . . . . . . . . . . Kinetic 209 | . . . 62 . . . . . 30 33 24 60 . . . Thermal 163 | 22 86 . 17 7 30 . . . . . . . . . 1 Explosive 20 | . . . . . 16 . . . 4 . . . . . . Electromagnetic . | . . . . . . . . . . . . . . . . Robot Hit Streak 16 | 3 8 . 13 4 16 . . . 10 16 5 6 . . 2 Robot Miss Streak 6 | 3 4 . 4 . 2 . . . 2 2 3 6 . . . Penetration Max 1 | . . . . . . . . . 1 . 1 1 . . . Secondary Targets 2 | . 1 . . . . . . . . 1 . . . . . Max Gunslinging Chain 1 | . 1 . . . . . . . . 1 . . . . . Shots Hit Robots 299 | 10 51 . 46 3 36 . . . 44 25 14 30 10 7 23 Core Hits 193 | 5 29 . 22 1 53 . . . 24 11 9 21 8 4 6 Critical Kills 6 | . . . . . 1 . . . 1 2 2 . . . . Critical Parts Destroyed 5 | . . . . . . . . . 1 3 1 . . . . Critical Strikes 30 | 1 9 . . . 2 . . . 5 6 3 . 1 . 3 Burn 10 | 1 9 . . . . . . . . . . . . . . Meltdown 1 | . . . . . 1 . . . . . . . . . . Destroy 11 | . . . . . . . . . 2 6 3 . . . . Sever 8 | . . . . . 1 . . . 3 . . . 1 . 3 Melee Attacks 189 | . . . . . 15 1 1 3 23 . . . 32 37 77 Impact . | . . . . . . . . . . . . . . . . Slashing 181 | . . . . . 15 1 1 3 23 . . . 29 32 77 Piercing 8 | . . . . . . . . . . . . . 3 5 . Sneak Attacks 12 | . . . . . 3 . . . 5 . . . 2 1 1 Combat Hostiles 2 | . . . . . 1 . . . . . . . . 1 . Follow-up Attacks 7 | . . . . . . . . . . . . . 1 2 4 Damage Inflicted 12199 | 149 691 . 798 147 3318 . . . 2322 730 458 1279 518 311 1478 Guns 4604 | 149 691 . 596 . 72 . . . 649 730 446 1271 . . . Cannons 1196 | . . . 202 147 796 . . . . . . . . . 51 Explosions 2876 | . . . . . 2162 . . . 714 . . . . . . Melee 3503 | . . . . . 288 . . . 959 . . . 518 311 1427 Ramming 20 | . . . . . . . . . . . 12 8 . . . Kinetic 3756 | . . . 660 . . . . . 649 730 446 1271 . . . Thermal 2044 | 149 691 . 138 147 868 . . . . . . . . . 51 Explosive 2876 | . . . . . 2162 . . . 714 . . . . . . Electromagnetic . | . . . . . . . . . . . . . . . . Impact . | . . . . . . . . . . . . . . . . Slashing 3451 | . . . . . 288 . . . 959 . . . 518 259 1427 Piercing 52 | . . . . . . . . . . . . . . 52 . Highest Corruption 12 | . . . . . 8 4 4 . . . . 12 . . 6 Average Corruption 4 | . . . . . 4 4 4 . . . . 7 . . 3 Corruption Purged 6 | . . . . . 6 . . . . . . . . . . Corruption Blocked . | . . . . . . . . . . . . . . . . Effects 43 | . . . . . 7 7 17 . . . . 1 . . 11 Message Errors 13 | . . . . . . 3 7 . . . . . . . 3 Matter Fused 10 | . . . . . 1 2 4 . . . . . . . 3 Heat Flow Errors 5 | . . . . . 2 . 2 . . . . . . . 1 Energy Discharges 5 | . . . . . 1 1 1 . . . . . . . 2 Parts Rejected 1 | . . . . . 1 . . . . . . . . . . Parts Fused 1 | . . . . . . . . . . . . . . . 1 Data Loss (minor) 4 | . . . . . 2 . 1 . . . . . . . 1 Data Loss (major) 3 | . . . . . . . 2 . . . . 1 . . . Alerts 1 | . . . . . . 1 . . . . . . . . . Overload Shots . | . . . . . . . . . . . . . . . . Overflow Damage 802 | . . . . 10 188 . . . 281 . . . . 39 284 Projectiles 149 | . . . . 10 139 . . . . . . . . . . Explosions 93 | . . . . . 17 . . . 76 . . . . . . Melee 560 | . . . . . 32 . . . 205 . . . . 39 284 Knockbacks 4 | . . . 4 . . . . . . . . . . . . Impact . | . . . . . . . . . . . . . . . . Kinetic 4 | . . . 4 . . . . . . . . . . . . Secondary . | . . . . . . . . . . . . . . . . Self-Inflicted Damage 230 | . . . . . 227 . . . . . . 3 . . . Shots 8 | . . . . . 8 . . . . . . . . . . Rammed 3 | . . . . . . . . . . . 1 2 . . . Targets Rammed 3 | . . . . . . . . . . . 1 2 . . . Kicked . | . . . . . . . . . . . . . . . . Crushed . | . . . . . . . . . . . . . . . . Highest Temperature 315 | 195 244 . 263 60 179 . 178 14 64 159 117 315 2 65 61 Average Temperature 47 | 81 73 . 146 29 42 . 87 5 26 65 44 80 2 16 22 Received Heat Transfer 1753 | . 72 . 354 . 234 . 9 9 253 . . 669 18 63 72 Effects 2 | . 1 . . . . . . . . . . 1 . . . Interference 2 | . 1 . . . . . . . . . . 1 . . . Siege Activations . | . . . . . . . . . . . . . . . . Martial Activations . | . . . . . . . . . . . . . . . . Shielding Activations . | . . . . . . . . . . . . . . . . Robots Disrupted . | . . . . . . . . . . . . . . . . Combat Hostiles . | . . . . . . . . . . . . . . . . Robots Corrupted . | . . . . . . . . . . . . . . . . Combat Hostiles . | . . . . . . . . . . . . . . . . Parts Fried . | . . . . . . . . . . . . . . . . Impact Corruptions . | . . . . . . . . . . . . . . . . Robots Melted 1 | . . . . . 1 . . . . . . . . . . Combat Hostiles 1 | . . . . . 1 . . . . . . . . . . Parts Melted 10 | 3 5 . 2 . . . . . . . . . . . . Heat Transferred 3774 | 518 2701 . 407 . 111 . . . . . . . . . 37 Parts Sabotaged . | . . . . . . . . . . . . . . . . Parts Stolen . | . . . . . . . . . . . . . . . . Parts Stripped . | . . . . . . . . . . . . . . . . Power Chain Reactions . | . . . . . . . . . . . . . . . . Alert | -11 -10 -10 -10 -7 -5 -5 -5 -4 -4 -4 -4 -4 -3 -3 -2 ------- Run | Yrd Mat Min Sub Rec Fac Upp Upp Fac Ext Cet Arc Hub Res Tes Res Maximum Alert Level 3 | . 1 . . . 1 . . . 3 2 2 3 1 1 2 Low Security (%) 59 | 100 65 100 . 100 58 . . 100 48 . 2 17 41 90 51 Level 1 26 | . 34 . . . 41 . . . 14 . 94 40 58 9 31 Level 2 9 | . . . . . . . . . 13 100 3 22 . . 16 Level 3 4 | . . . . . . . . . 23 . . 19 . . . Level 4 . | . . . . . . . . . . . . . . . . Level 5 . | . . . . . . . . . . . . . . . . High Security . | . . . . . . . . . . . . . . . . Max Security . | . . . . . . . . . . . . . . . . Peak Influence 869 | 10 258 61 . 30 362 . . 60 776 583 404 869 383 295 557 Initial 416 | . . 61 . . 250 . . 4 19 416 204 68 369 . 155 Average 195 | 1 149 6 . 5 186 . . 9 353 502 295 417 190 64 228 Influence Increases 7242 | 20 574 . . 159 922 60 60 70 1510 397 250 1121 255 619 1225 Destroy 0b10 Robot/C 1840 | . 300 . . . 300 . . . 660 160 80 320 . . 20 Destroy 0b10 Robot/NC 325 | 20 35 . . 5 30 . . . 60 10 20 65 25 20 35 Destroy Leader 278 | . 60 . . . 50 . . . 56 . . 86 10 4 12 Allied During Kill 1158 | . . . . . . . . . 497 170 100 391 . . . Successful Hack 463 | . 11 . . . 24 . . 4 41 17 . 12 75 81 198 Select Force Hacks 230 | . 30 . . 150 . . . . . . . 50 . . . Disable Machine 210 | . . . . . 30 . . . . . 30 75 15 60 . Destroy Structure 538 | . 3 . . 4 118 . . 6 106 40 20 122 10 34 75 Advance Influence 250 | . . . . . 250 . . . . . . . . . . Partial Spotted 330 | . . . . . 15 . . 15 15 . . . 30 60 195 Lose Combat Pursuer 1620 | . 135 . . . 105 60 60 45 75 . . . 90 360 690 Influence Decreases 7227 | 20 416 158 . 159 564 358 113 37 806 630 565 612 960 342 1487 Entered New Map 1487 | . . 97 . . . 133 12 3 21 328 307 128 336 . 122 Time Decay 3762 | 20 406 61 . 159 404 225 91 24 526 222 238 254 340 302 490 Search Patrol Dispatched 200 | . . . . . . . . . . . . . . . 200 Lost Part 535 | . 10 . . . 160 . . 10 79 . . 130 16 40 90 Lost Ally 410 | . . . . . . . 10 . 180 80 20 100 . . 20 Purge Threat 833 | . . . . . . . . . . . . . 268 . 565 Squads Dispatched 41 | . 3 . . . 3 . . . 2 . . 9 9 5 10 Investigation 5 | . 1 . . . . . . . 1 . . 1 1 . 1 Extermination 8 | . . . . . 2 . . . . . . 1 . 2 3 Reinforcement 21 | . 2 . . . 1 . . . . . . 4 8 2 4 Assault 7 | . . . . . . . . . 1 . . 3 . 1 2 Garrison . | . . . . . . . . . . . . . . . . Intercept . | . . . . . . . . . . . . . . . . Searches Triggered 2 | . . . . . . . . . . . . . . . 2 Construction Impeded 2 | . . . . . 1 . . . . . . 1 . . . Haulers Reinforced 2 | . . . . . . . . . . . . 1 1 . . Active Scanning Responses . | . . . . . . . . . . . . . . . . Cargo Convoy Interrupts . | . . . . . . . . . . . . . . . . Stealth | -11 -10 -10 -10 -7 -5 -5 -5 -4 -4 -4 -4 -4 -3 -3 -2 --------- Run | Yrd Mat Min Sub Rec Fac Upp Upp Fac Ext Cet Arc Hub Res Tes Res Distress Signals 25 | . 2 . . . 1 . . 1 2 2 1 2 8 5 1 Communications Jammed . | . . . . . . . . . . . . . . . . Distress Signals . | . . . . . . . . . . . . . . . . Times Spotted 313 | . 33 . 11 . 25 3 8 10 42 10 8 36 16 40 71 Peak Tracking Total 19 | . 6 . 2 . 9 4 3 6 7 5 1 19 7 10 14 Tactical Retreats 54 | . 8 . . . 3 2 4 1 2 . . . 5 10 19 Traps | -11 -10 -10 -10 -7 -5 -5 -5 -4 -4 -4 -4 -4 -3 -3 -2 ------- Run | Yrd Mat Min Sub Rec Fac Upp Upp Fac Ext Cet Arc Hub Res Tes Res Traps Triggered 3 | . . . . . . . . . . . . . 1 . 2 Indirectly . | . . . . . . . . . . . . . . . . Trap Hack Attempts . | . . . . . . . . . . . . . . . . Triggered . | . . . . . . . . . . . . . . . . Disarmed . | . . . . . . . . . . . . . . . . Reprogrammed . | . . . . . . . . . . . . . . . . Reused . | . . . . . . . . . . . . . . . . Traps Extracted . | . . . . . . . . . . . . . . . . Installed . | . . . . . . . . . . . . . . . . Triggered . | . . . . . . . . . . . . . . . . Machines | -11 -10 -10 -10 -7 -5 -5 -5 -4 -4 -4 -4 -4 -3 -3 -2 ---------- Run | Yrd Mat Min Sub Rec Fac Upp Upp Fac Ext Cet Arc Hub Res Tes Res Machines Disabled 16 | . . . . . 2 1 . . 1 . 2 5 1 4 . Max in Single Turn 1 | . . . . . 1 1 . . . . 1 1 1 1 . Garrison Access 5 | . . . . . . . . . . . . 1 . 1 3 Network Hub 2 | . . . . . . . . . . . . 2 . . . Machines Repaired . | . . . . . . . . . . . . . . . . Machines Dismantled . | . . . . . . . . . . . . . . . . Machines Sabotaged 1 | . . . . . . . . . . . . 1 . . . Overloaded Fab Kills . | . . . . . . . . . . . . . . . . Hacking | -11 -10 -10 -10 -7 -5 -5 -5 -4 -4 -4 -4 -4 -3 -3 -2 --------- Run | Yrd Mat Min Sub Rec Fac Upp Upp Fac Ext Cet Arc Hub Res Tes Res Machines Accessed 77 | . 6 . 1 10 4 1 2 2 10 3 1 4 7 8 18 Terminals 57 | . 5 . . 5 4 . . 1 10 3 . 4 6 6 13 Fabricators . | . . . . . . . . . . . . . . . . Repair Stations . | . . . . . . . . . . . . . . . . Recycling Units 7 | . 1 . . 5 . . . . . . . . . . 1 Scanalyzers 4 | . . . . . . . . . . . . . 1 1 2 Garrison Access 4 | . . . . . . . . 1 . . . . . 1 2 Total Hacks 316 | . 6 . 1 15 7 1 8 3 16 11 1 14 33 65 135 Successful 157 | . 6 . 1 10 3 1 8 1 10 5 1 7 17 27 60 Failed 159 | . . . . 5 4 . . 2 6 6 . 7 16 38 75 Catastrophic 27 | . . . . 1 1 . . . . . . 1 4 4 16 Database Lockouts . | . . . . . . . . . . . . . . . . Manual 150 | . 6 . . 13 6 . . 1 4 2 . 11 15 26 66 Terminals 280 | . 5 . . 8 7 . . 1 16 11 . 14 30 60 128 Fabricators . | . . . . . . . . . . . . . . . . Repair Stations . | . . . . . . . . . . . . . . . . Recycling Units 9 | . 1 . . 7 . . . . . . . . . . 1 Scanalyzers 9 | . . . . . . . . . . . . . 3 3 3 Garrison Access 7 | . . . . . . . . 2 . . . . . 2 3 Terminal Hacks 95 | . . . 1 . 1 1 8 . 7 5 1 3 8 17 43 Record 13 | . . . . . . . 7 . . 4 1 . 1 . . Robot Analysis 9 | . . . . . . . . . . . . . . 1 8 Prototype ID Bank 6 | . . . . . . . . . . . . . . 2 4 Open Door 11 | . . . 1 . . 1 1 . 7 1 . . . . . Level Access Points 1 | . . . . . . . . . . . . . . 1 . Branch Access Points 3 | . . . . . 1 . . . . . . . . 1 1 Emergency Access Points 4 | . . . . . . . . . . . . 1 . 1 2 Terminal Index 3 | . . . . . . . . . . . . . 1 1 1 Garrison Index 1 | . . . . . . . . . . . . . . . 1 Alert Level 5 | . . . . . . . . . . . . . 1 1 3 Unreport Threat 7 | . . . . . . . . . . . . . 3 . 4 Locate Traps 6 | . . . . . . . . . . . . 1 . 2 3 Security Status 1 | . . . . . . . . . . . . . . . 1 Patrol Status 1 | . . . . . . . . . . . . . . . 1 Extermination Status 2 | . . . . . . . . . . . . . . . 2 Recall Extermination 4 | . . . . . . . . . . . . . . 1 3 Hauler Manifests 2 | . . . . . . . . . . . . . . 1 1 Registered Components 3 | . . . . . . . . . . . . . 1 1 1 Registered Prototypes 2 | . . . . . . . . . . . . . 1 . 1 Zone Layout 10 | . . . . . . . . . . . . 1 . 3 6 Protovariant Controls 1 | . . . . . . . . . . . . . . 1 . Fabricator Hacks . | . . . . . . . . . . . . . . . . Repair Station Hacks . | . . . . . . . . . . . . . . . . Recycling Unit Hacks 3 | . . . . 2 . . . . . . . . . . 1 Report Inventory 2 | . . . . 1 . . . . . . . . . . 1 Retrieve Components 1 | . . . . 1 . . . . . . . . . . . Scanalyzer 9 | . . . . . . . . . . . . . 3 3 3 Insert Component 1 | . . . . . . . . . . . . . . . 1 Retrieve Study 8 | . . . . . . . . . . . . . 3 3 2 Garrison Access Hacks 3 | . . . . . . . . . . . . . . 1 2 Seal Access 3 | . . . . . . . . . . . . . . 1 2 Unauthorized Hacks 47 | . 6 . . 8 2 . . 1 3 . . 4 6 6 11 Terminals 41 | . 5 . . 3 2 . . 1 3 . . 4 6 6 11 Track 1 | . . . . . . . . . . . . . . 1 . Assimilate 3 | . . . . . . . . . . . . . . . 3 Botnet 35 | . 5 . . 3 2 . . 1 3 . . 3 6 4 8 Skim 1 | . . . . . . . . . . . . . . 1 . Sabotage 1 | . . . . . . . . . . . . 1 . . . Fabricators . | . . . . . . . . . . . . . . . . Repair Stations . | . . . . . . . . . . . . . . . . Recycling Units 6 | . 1 . . 5 . . . . . . . . . . . Tunnel 6 | . 1 . . 5 . . . . . . . . . . . Scanalyzers . | . . . . . . . . . . . . . . . . Garrison Access . | . . . . . . . . . . . . . . . . Data Cores Recovered 2 | . . . . . . . . . 1 . . 1 . . . Used 2 | . . . . . . . . . 1 . . 1 . . . Hacking Detections 45 | . 1 . . 4 3 . . 2 5 4 . 3 5 4 14 Full Trace Events 1 | . . . . . . . . . 1 . . . . . . Feedback Events . | . . . . . . . . . . . . . . . . Feedback Blocked . | . . . . . . . . . . . . . . . . Robot Schematics Acquired . | . . . . . . . . . . . . . . . . Robots Built . | . . . . . . . . . . . . . . . . Authchips . | . . . . . . . . . . . . . . . . Time . | . . . . . . . . . . . . . . . . Total Robot Build Rating . | . . . . . . . . . . . . . . . . Part Schematics Acquired 3 | . . . . . . . . . . . . . . 3 . Parts Built . | . . . . . . . . . . . . . . . . Authchips . | . . . . . . . . . . . . . . . . Time . | . . . . . . . . . . . . . . . . Total Part Build Rating . | . . . . . . . . . . . . . . . . Part Studies Acquired 8 | . . . . . . . . . . . . . 3 3 2 Parts Repaired . | . . . . . . . . . . . . . . . . Time . | . . . . . . . . . . . . . . . . Parts Recycled . | . . . . . . . . . . . . . . . . Recycled Matter . | . . . . . . . . . . . . . . . . Retrieved Matter . | . . . . . . . . . . . . . . . . Retrieved Components 3 | . . . . 3 . . . . . . . . . . . Parts Scanalyzed . | . . . . . . . . . . . . . . . . Part Schematics Acquired . | . . . . . . . . . . . . . . . . Parts Damaged . | . . . . . . . . . . . . . . . . Bothacking | -11 -10 -10 -10 -7 -5 -5 -5 -4 -4 -4 -4 -4 -3 -3 -2 ------------ Run | Yrd Mat Min Sub Rec Fac Upp Upp Fac Ext Cet Arc Hub Res Tes Res Used RIF Installer . | . . . . . . . . . . . . . . . . Robots Hacked . | . . . . . . . . . . . . . . . . Non-combat . | . . . . . . . . . . . . . . . . Combat . | . . . . . . . . . . . . . . . . Robot Hacks Applied . | . . . . . . . . . . . . . . . . Relay Couplers Released 4 | . . . . . . . . . . . . 1 . . 3 Machine Destruction 4 | . . . . . . . . . . . . 1 . . 3 Fabnet Peak Effective % . | . . . . . . . . . . . . . . . . Robots Rewired 16 | . . . . . . . . . 16 . . . . . . Allies Hacked . | . . . . . . . . . . . . . . . . Hacks Repelled . | . . . . . . . . . . . . . . . . Allies | -11 -10 -10 -10 -7 -5 -5 -5 -4 -4 -4 -4 -4 -3 -3 -2 -------- Run | Yrd Mat Min Sub Rec Fac Upp Upp Fac Ext Cet Arc Hub Res Tes Res Total Allies 33 | . . . . . . . . . 26 5 . . . . 2 Largest Group 16 | . . . . . . . . . 16 13 13 11 . . 2 Highest-Rated Group 946 | . . . . . . . . . 796 946 946 747 . . 55 Highest-Rated Ally 159 | . . . . . . . . . 159 159 159 96 . . 45 Total Orders 19 | . . . . . . 11 7 . . 1 . . . . . FOLLOW 5 | . . . . . . 4 . . . 1 . . . . . EXPLORE 1 | . . . . . . 1 . . . . . . . . . RETURN 13 | . . . . . . 6 7 . . . . . . . . Ally Attacks 327 | . . . . . . . . . 166 44 27 90 . . . Total Damage 10702 | . . . . . . . . . 5194 1219 1017 3272 . . . Kills 75 | . . . . . . . . . 34 9 4 28 . . . Allies Corrupted . | . . . . . . . . . . . . . . . . Allies Melted 1 | . . . . . . . . . . . . 1 . . . Intel | -11 -10 -10 -10 -7 -5 -5 -5 -4 -4 -4 -4 -4 -3 -3 -2 ------- Run | Yrd Mat Min Sub Rec Fac Upp Upp Fac Ext Cet Arc Hub Res Tes Res Active Infowar (turns) 10553 | 26 1028 703 538 . 485 591 723 179 1571 462 512 514 773 1141 1307 Optics 5385 | . . . 414 . . . 441 179 1571 462 512 502 . . 1304 Sensors 4269 | . . . . . 308 591 723 179 560 . . . 773 1135 . Structural 1882 | . 878 703 124 . 177 . . . . . . . . . . Seismic 176 | 26 150 . . . . . . . . . . . . . . Decoding 3233 | . . . . . . . . 174 1571 462 512 514 . . . Triangulation 1770 | . . . . . . . . . . . . . . 674 1096 Robot Analysis Total 9 | . . . . . . . . . . . . . . 1 8 Derelict Logs Recovered 3 | . . . 1 . . 2 . . . . . . . . . Drone Launches 19 | . . . . . . 10 9 . . . . . . . . Drone Recoveries 18 | . . . . . . 10 8 . . . . . . . . Decoded 0b10 Intel 36 | . . . . . . . . 5 14 2 2 13 . . . Traps 15 | . . . . . . . . 1 9 . . 5 . . . Emergency Access 12 | . . . . . . . . 2 2 . . 8 . . . Exits 9 | . . . . . . . . 2 3 2 2 . . . . Exploration | -11 -10 -10 -10 -7 -5 -5 -5 -4 -4 -4 -4 -4 -3 -3 -2 ------------- Run | Yrd Mat Min Sub Rec Fac Upp Upp Fac Ext Cet Arc Hub Res Tes Res Turns Passed 13516 | 151 1115 703 1511 999 975 591 723 179 1571 462 512 541 1025 1141 1317 Spaces Moved 15591 | 86 756 546 1137 684 918 894 1106 444 1105 199 150 310 2545 2031 2680 Core 260 | 3 . . . . . . . . 4 . . 56 179 . 18 Treads 1050 | . . . . . . . . . 447 199 150 254 . . . Legs 1493 | 83 756 546 108 . . . . . . . . . . . . Wheels 2112 | . . . 1029 684 399 . . . . . . . . . . Hover . | . . . . . . . . . . . . . . . . Flight 10676 | . . . . . 519 894 1106 444 654 . . . 2366 2031 2662 Fastest Speed 27 | 50 120 120 115 115 29 29 29 27 27 160 160 50 28 29 32 Average Speed 60 | 118 120 120 115 136 67 29 29 27 86 160 160 140 33 29 33 Slowest Speed 190 | 120 120 120 190 190 145 29 32 27 160 160 160 160 108 32 60 Overloaded Moves . | . . . . . . . . . . . . . . . . Propulsion Burnouts . | . . . . . . . . . . . . . . . . Robots Hopped 121 | . . . . . 7 . . 5 9 . . . 9 62 29 Potential Cave-ins 14 | . . . . . . . . . . . . . . . 14 Cave-ins Triggered 1 | . . . . . . . . . . . . . . . 1 Exploration Rate (%) 69 | 4 97 91 78 95 19 86 93 14 98 87 95 38 69 93 56 Regions Visited 15 Branch Regions 10 Pre-discovered Areas 7 | . 1 . . 5 . 1 . . . . . . . . . Known Exits Taken 11 | . . . 1 . 1 1 1 1 1 1 1 1 1 1 . Unknown Exits Taken 4 | 1 1 1 . 1 . . . . . . . . . . . Scrap Searched 13 | . . 1 6 . . 4 2 . . . . . . . . Spaces Dug 85 | . . . 2 4 13 . 1 3 . . . . 5 17 40 Terrain Destroyed 216 | . . . 3 4 68 . 1 3 35 5 8 27 5 17 40 Melee 73 | . . . . . 7 . 1 3 . . . . 5 17 40 Projectile 58 | . . . 3 4 10 . . . 2 5 8 26 . . . AOE 84 | . . . . . 51 . . . 33 . . . . . . Terrain Rammed . | . . . . . . . . . . . . . . . . Walls Destroyed . | . . . . . . . . . . . . . . . . Machines Disabled . | . . . . . . . . . . . . . . . . Actions | -11 -10 -10 -10 -7 -5 -5 -5 -4 -4 -4 -4 -4 -3 -3 -2 --------- Run | Yrd Mat Min Sub Rec Fac Upp Upp Fac Ext Cet Arc Hub Res Tes Res Total 18881 | 110 878 594 1256 747 1206 1224 1506 494 1649 317 405 380 2670 2476 2969 Wait 2459 | 2 66 45 47 35 180 321 391 43 333 84 239 25 43 429 176 Move 15352 | 85 755 545 1136 683 903 893 1105 434 1087 198 150 309 2526 1915 2628 Hop 104 | . . . . . 7 . . 4 8 . . . 9 53 23 Pick Up 121 | 5 6 1 5 15 12 6 2 1 13 6 3 . 16 18 12 Fast Attach 68 | 7 1 1 2 1 9 . 2 3 12 3 . . 18 2 7 Attach 65 | . . . 3 . 24 1 2 3 6 . 1 2 11 3 9 Detach 19 | . . . . . 1 . . 1 2 1 . . 9 2 3 Swap 27 | . 1 . 4 2 2 . . . 3 3 1 3 1 3 4 Drop 119 | . 2 2 7 3 11 2 3 2 5 9 3 19 8 19 24 Fire 221 | 11 47 . 52 7 42 . . . 20 13 8 20 . . 1 Melee 174 | . . . . . 15 1 1 3 23 . . . 29 32 70 Ram 2 | . . . . . . . . . . . . 2 . . . Kick . | . . . . . . . . . . . . . . . . Crush . | . . . . . . . . . . . . . . . . Escape Stasis 12 | . . . . . . . . . . . . . . . 12 Rewire 138 | . . . . 1 . . . . 137 . . . . . . Trap . | . . . . . . . . . . . . . . . . Miscellaneous . | . . . . . . . . . . . . . . . . Route ------- -11/Scrapyard -10/Materials (discovered 5 exits: [*Mat x3] / [*Min x2]) -10/Mines (discovered 3 exits: [*Mat] / [*Exi] / *Sub) -10/Subcaves (discovered 2 exits: [*Mat] / *Rec) -7/Recycling -5/Factory (discovered 2 exits: *Upp x2) -5/Upper Caves -5/Upper Caves (discovered 2 exits: *Fac / *War) -4/Factory (discovered 2 exits: Upp / *Ext) -4/Extension (discovered 3 exits: *Res x2 / *Cet) -4/Cetus (discovered 2 exits: *Res / *Arc) -4/Archives (discovered 3 exits: *Res / *Hub x2) -4/Hub_04(d) -3/Research (discovered 4 exits: *Res x3 / *Tes) -3/Testing -2/Research (discovered 3 exits: [*Acc] / *Qua x2) History --------- Turn | Location | Event 6 | -11/Scrapyard | Discovered new exit (range 16) 152 | -11/Scrapyard | Entered Materials 193 | -10/Materials | Discovered new exit (range 7) 284 | -10/Materials | Discovered new exit (range 12) 305 | -10/Materials | Build established: Mutant 576 | -10/Materials | Discovered new exit (range 11) 851 | -10/Materials | Discovered new exit (range 16) 1032 | -10/Materials | Discovered new exit (range 10) 1267 | -10/Materials | Entered Mines 1314 | -10/Mines | Discovered new exit (range 9) 1384 | -10/Mines | Found a hidden stash of uninstalled traps 1497 | -10/Mines | A weapon hastily lodged in a ceiling crevice suddenly fell to the ground 1517 | -10/Mines | Discovered new exit (range 6) 1722 | -10/Mines | Deemed a non-threat by the Exiles lab entrance 1722 | -10/Mines | Discovered new exit (range 5) 1857 | -10/Mines | Found a damaged Exp. Sensor Array with a note attached 1860 | -10/Mines | Found Prototype Device 1970 | -10/Mines | Entered Subcaves 1992 | -10/Subcaves | A swath of the cavern ceiling suddenly collapsed 2097 | -10/Subcaves | Core integrity fell below 50% 2144 | -10/Subcaves | Shifting Twisted Machinery released Barrage Gun 2153 | -10/Subcaves | Shifting Twisted Machinery released Mak. Hammer 2220 | -10/Subcaves | Ambushed by Subdweller buried in earth 2261 | -10/Subcaves | Discovered new exit (range 3) 2346 | -10/Subcaves | Shifting Twisted Machinery released Sub. Monowheel 2346 | -10/Subcaves | Shifting Twisted Machinery released Flamer 2686 | -10/Subcaves | Ambushed by Subdwellers from Twisted Machinery 2901 | -10/Subcaves | Identified exit to Recycling 3084 | -10/Subcaves | Ambushed by Subdwellers from Twisted Machinery 3410 | -10/Subcaves | A Subdweller sparked back to life 3410 | -10/Subcaves | A Subdweller sparked back to life 3410 | -10/Subcaves | A Subdweller sparked back to life 3419 | -10/Subcaves | Core integrity fell below 20% 3440 | -10/Subcaves | Found Prototype Energy Cannon 3443 | -10/Subcaves | Identified Powered Cannon 3444 | -10/Subcaves | Attached Powered Cannon, gained temporary slot: Power 3481 | -10/Subcaves | Entered Recycling 3482 | -7/Recycling | Met a Zionite searching for Scraptown 3618 | -7/Recycling | Scanned before Scraplab entrance 4463 | -7/Recycling | Discovered new exit (range 9) 4480 | -7/Recycling | Entered Factory 4480 | -5/Factory | Evolved 10 slots: Propulsion x3, Utility x6, Weapon x1 4572 | -5/Factory | Identified Exp. Sensor Array 5201 | -5/Factory | Destroyed 8 combat bots 5209 | -5/Factory | Core integrity fell below 50% 5233 | -5/Factory | Lost 14 parts (1p3n7u3w) 5319 | -5/Factory | Spotted B-75 Beast 5384 | -5/Factory | Identified exit to Upper Caves 5455 | -5/Factory | Entered Upper Caves 5509 | -5/Upper Caves | Attacked by a delusional Derelict stockpiling parts 5592 | -5/Upper Caves | Learned Factory security intel 5618 | -5/Upper Caves | Build established: Scavenger-Sprinter 5924 | -5/Upper Caves | Discovered new exit (range 15) 5960 | -5/Upper Caves | Encountered a Warlord checkpoint 5962 | -5/Upper Caves | Identified exit to Upper Caves 6046 | -5/Upper Caves | Entered another Upper Caves area 6303 | -5/Upper Caves | Door terminal overloaded 6304 | -5/Upper Caves | Entered an active Warlord outpost 6325 | -5/Upper Caves | Learned location of 1 exit from Research 6325 | -5/Upper Caves | Learned Factory security intel 6325 | -5/Upper Caves | Learned Armory terminal intel 6325 | -5/Upper Caves | Learned Armory garrison access intel 6503 | -5/Upper Caves | Attracted the attention of an 0b10 checkpoint 6538 | -5/Upper Caves | Discovered new exit (range 7) 6540 | -5/Upper Caves | Identified exit to Warlord 6557 | -5/Upper Caves | Encountered a Warlord checkpoint 6760 | -5/Upper Caves | Discovered new exit (range 15) 6769 | -5/Upper Caves | Identified exit to Factory 6769 | -5/Upper Caves | Entered Factory 6769 | -4/Factory | Evolved 2 slots: Power x1, Propulsion x1 6870 | -4/Factory | Identified exit to Extension 6892 | -4/Factory | Build established: Derelict-Scout 6900 | -4/Factory | Identified exit to Upper Caves 6920 | -4/Factory | Spotted B-86 Titan 6948 | -4/Factory | Entered Extension 6991 | -4/Extension | Rescued a captive Derelict 7001 | -4/Extension | Lost 6 parts (4n1u1w) 7015 | -4/Extension | Rescued a captive Derelict 7024 | -4/Extension | Rescued a captive Derelict 7088 | -4/Extension | Rescued a captive Derelict 7113 | -4/Extension | Rescued a captive Derelict 7119 | -4/Extension | Spotted B-86 Titan 7276 | -4/Extension | Rescued a captive Derelict 7285 | -4/Extension | Rescued a captive Derelict 7559 | -4/Extension | Identified exit to Research 7579 | -4/Extension | Spotted B-86 Titan 7589 | -4/Extension | Allies destroyed B-86 Titan 7601 | -4/Extension | Allies destroyed B-86 Titan 7624 | -4/Extension | Lost 5 parts (1p2n1u1w) 7908 | -4/Extension | Rescued A7 7943 | -4/Extension | Rescued a captive Derelict 7946 | -4/Extension | Rescued a captive Derelict 7992 | -4/Extension | Identified exit to Cetus 8198 | -4/Extension | First assault squad dispatched 8475 | -4/Extension | Found Quantum Capacitor 8487 | -4/Extension | Found Quantum Capacitor 8519 | -4/Extension | Entered Cetus 8519 | -4/Cetus | Accompanied by 13 allies (A7) 8524 | -4/Cetus | Acquired a Cetus Manufacturing Module code from A7 8534 | -4/Cetus | Spotted Cetus Guard 8535 | -4/Cetus | Spotted Cetus Guard 8537 | -4/Cetus | Spotted Cetus Guard 8542 | -4/Cetus | Spotted Cetus Guard 8544 | -4/Cetus | Allies destroyed Cetus Guard 8545 | -4/Cetus | Allies destroyed Cetus Guard 8550 | -4/Cetus | Destroyed Cetus Guard 8559 | -4/Cetus | Allies destroyed Cetus Guard 8591 | -4/Cetus | Lost 4 allies 8624 | -4/Cetus | Build established: Scavenger-Tank 8694 | -4/Cetus | Started Cetus Manufacturing Module 8707 | -4/Cetus | Escorted A7 to Cetus Mainframe 8719 | -4/Cetus | Manufactured an Enhanced Grunt 8724 | -4/Cetus | Identified exit to Archives 8744 | -4/Cetus | Manufactured an Enhanced Grunt 8769 | -4/Cetus | Manufactured an Enhanced Grunt 8791 | -4/Cetus | Spotted Cetus Guard 8793 | -4/Cetus | Spotted Cetus Guard 8793 | -4/Cetus | Spotted Cetus Guard 8794 | -4/Cetus | Manufactured an Enhanced Grunt 8799 | -4/Cetus | Destroyed Cetus Guard 8799 | -4/Cetus | Spotted Cetus Guard 8815 | -4/Cetus | Allies destroyed Cetus Guard 8818 | -4/Cetus | Allies destroyed Cetus Guard 8818 | -4/Cetus | Allies destroyed Cetus Guard 8819 | -4/Cetus | Manufactured an Enhanced Grunt 8844 | -4/Cetus | Met Revision 17 8981 | -4/Cetus | Entered Archives 8981 | -4/Archives | Accompanied by 13 allies (A7) 8986 | -4/Archives | Received a hacking code to weaken MAIN.C 8990 | -4/Archives | Identified exit to Hub_04(d) 9058 | -4/Archives | Discovered exit to Research (range 19) 9088 | -4/Archives | Unable to access archive contents 9349 | -4/Archives | Unable to access archive contents 9493 | -4/Archives | Entered Hub_04(d) 9493 | -4/Hub_04(d) | Accompanied by 11 allies 9623 | -4/Hub_04(d) | Lost 3 allies 9642 | -4/Hub_04(d) | Discovered exit to Research (range 17) 9930 | -4/Hub_04(d) | Network Hub disabled 9930 | -4/Hub_04(d) | Network Hub disabled 9968 | -4/Hub_04(d) | Spotted Lightning 9972 | -4/Hub_04(d) | Spotted Lightning 9973 | -4/Hub_04(d) | Spotted Lightning 9978 | -4/Hub_04(d) | Allies destroyed Lightning 9993 | -4/Hub_04(d) | First assault squad dispatched 10008 | -4/Hub_04(d) | System corruption reached 10% 10009 | -4/Hub_04(d) | Core integrity fell below 50% 10019 | -4/Hub_04(d) | Lost 4 allies 10034 | -4/Hub_04(d) | Entered Research 10034 | -3/Research | Evolved 2 slots: Weapon x2 10035 | -3/Research | Identified exit to Testing 10045 | -3/Research | Lost 13 parts (2p4n4u3w) 10234 | -3/Research | Revision forces began assault on 0b10 10357 | -3/Research | Build established: Hacker-Mutant 10398 | -3/Research | Met up with Revision 17++ 10421 | -3/Research | Found Prototype Hackware 10421 | -3/Research | Identified Exp. System Shield 10565 | -3/Research | Discovered new exit (range 5) 10568 | -3/Research | Identified exit to Research 10711 | -3/Research | Build established: Hacker-Sprinter 10734 | -3/Research | Research terminal network offline 10757 | -3/Research | Found Prototype Device 10757 | -3/Research | Identified Exp. Thermal Shield 10778 | -3/Research | Discovered exit to Research (range 14) 10820 | -3/Research | Found Prototype Device 10823 | -3/Research | Identified Exp. Shield Generator 10951 | -3/Research | Discovered exit to Research (range 3) 11059 | -3/Research | Entered Testing 11069 | -3/Testing | Protovariant out of control (PX-1OP0SW8SY8) 11069 | -3/Testing | Unleashed a protovariant (PX-1OP0SW8SY8) 11101 | -3/Testing | Found Prototype Processor 11169 | -3/Testing | Spotted PX-1OP0SW8SY8 11178 | -3/Testing | Identified Spectral Analyzer 11493 | -3/Testing | Found Prototype Processor 11495 | -3/Testing | Identified Exp. Signal Interpreter 11547 | -3/Testing | Found Spectral Analyzer 11610 | -3/Testing | Discovered exit to Research (range 16) 11766 | -3/Testing | Found Prototype Device 11783 | -3/Testing | Identified Exp. EM Disruption Field 11818 | -3/Testing | Found Prototype Device 11826 | -3/Testing | Found Prototype Energy Gun 11856 | -3/Testing | Watched by a mysterious "MATRIX" hacker 11862 | -3/Testing | Identified 2N-1CE's Frost Array 11895 | -3/Testing | Identified Warp Gun 12093 | -3/Testing | Found Prototype Device 12094 | -3/Testing | Found Prototype Processor 12108 | -3/Testing | Identified Adv. Kinecellerator 12109 | -3/Testing | Identified Exp. Target Analyzer 12170 | -3/Testing | Spotted Striker 12200 | -3/Testing | Entered Research 12200 | -2/Research | Evolved 2 slots: Utility x1, Weapon x1 12225 | -2/Research | Lost 3 parts (2n1u) 12362 | -2/Research | Found Prototype Device 12368 | -2/Research | Identified Exp. Focal Shield 12399 | -2/Research | Found Prototype Device 12401 | -2/Research | Identified Exp. EM Shield 12427 | -2/Research | Spotted B-90 Cyclops 12554 | -2/Research | Discovered new exit (range 6) 12646 | -2/Research | Identified exit to Quarantine 12700 | -2/Research | Search patrols dispatched 12806 | -2/Research | Found Prototype Device 12809 | -2/Research | Identified Exp. Actuator Array 13200 | -2/Research | Search patrols dispatched 13268 | -2/Research | Spotted B-90 Cyclops 13281 | -2/Research | Lost 4 parts (4n) 13311 | -2/Research | Core integrity fell below 50% 13339 | -2/Research | Crushed by falling debris 13340 | -2/Research | Lost 3 parts (3u) 13387 | -2/Research | Found Fusion Bomb Launcher 13436 | -2/Research | Targeted by mysterious "MATRIX" hacker 13486 | -2/Research | Spotted B-90 Cyclops 13507 | -2/Research | Core integrity fell below 20% 13517 | -2/Research | Destroyed by Y-72 Warden with Railgun Last Messages --------------- 13492_ K-01 Serf destroyed. 13492_ K-01 Serf collects debris. 13501_ ALERT: Suspicious intruders detected, dispatching Cutter reinforcements to area. 13505_ R-10 Processor knocked back. 13505_ C-57 Dissector knocked back. 13505_ U-05 Engineer destroyed. 13505_ Knocked back. 13505_ R-10 Processor knocked back. 13505_ C-57 Dissector knocked back. 13506_ The unstable cave ceiling collapses. 13507_ Spectral Analyzer severed. 13508_ Imp. Propulsion Shielding destroyed. 13508_ Impulse Thruster+ destroyed. 13508_ Knocked back. 13510_ Chainsword severed. 13513_ Adv. System Shield severed. 13514_ Penetrated by Slug. 13514_ Slug penetrates Wall. 13517_ Exp. Signal Interpreter severed. Map ----- +----------------------------------------------------+ | | | | | | | | | | | ?????????????????????????????????????????????????? | | ?????????????????????????????????????????????????? | | ???????????????????!?????????????????????????????? | | ?????????????????????????????????????????????????? | | ?????????????????????????????????????????????????? | | ?????????????????????????????????????????????????? | | ????????????????????????????????!????????????????? | | ?????????????????????????????????????????????????? | | ??????????????????????+###???????????????????????? | | ?????????????????????? ???????????????????????? | | ??????????????????????? ???????????????????????? | | ??????????????????????? ???????????????????????? | | ??????????????????????? #??????????????????????? | | ??????????????????????? #??????????????????????? | | ???????????????????????? #??????????????????????? | | ???????????????????????? ??????????????????????? | | ???????????????????????? Y ??????????????????????? | | ???????????????????????? ??????????????????????? | | ????????????????????????# #??????????????????????? | | #???????????????????????# #??????????????????????? | | #################???????#@#??????????????????????? | | ???????#c#??????????????? ??????? | | ##############???????#c#??!??????????? ????? | | #??###### ???????# #?????????????? ????? | | #??# # ???????# #????????????? #?????? | | #??# # ???????# #???????????? #?????? | | #### # ???????# #########+### #?????? | | + # ???????# +?????? | | ####### # ???????+ #?????? | | ##??# = # ???????# #?????? | | "######### ???????+ #?????? | | "# # ######## ######## ???? | | "# # #??#####/ # # ???? | | "# "" # #### # / # ???? | | T" """ =# # ###???? | | "# R" ############## # ] #?????? | | "# """ #????????????# = %= #?????? | | "# ! #????????????# """ % #?????? | | # #????????????# """ #?????? | | # #????????????# """ ######?????? | | #######+################# ############# | | | | | | "" | | "" | +----------------------------------------------------+ Best States ------------- Heat Dissipation 68 Coolant Potential 120 Energy Generation 43 Energy Capacity 420 Matter Stores 300 Matter Capacity 300 Sight Range 24 Robot Scan Range 20 Terrain Scan Density 10 Additional Mass Support 9 Base Temperature (-) 100 EM Shielding 2 Armor Coverage 450 Propulsion Shielding 66 Evasion (%) 64 Recoil Reduction 6 Kinecelleration 40 Offensive Hacking 26 Defensive Hacking 42 Item Schematics ----------------- Exp. Power Amplifier | -3/Testing | Archive Exp. Melee Analysis Suite | -3/Testing | Archive Adv. KE Penetrator | -3/Testing | Archive Robot Schematics ------------------ None Fabricated ------------ Nothing Repaired ---------- Nothing Studied --------- Impulse Thruster | -3/Research | Hacked Impulse Thruster Array | -3/Research | Hacked Lgt. Antimatter Reactor | -3/Research | Hacked Adv. Remote Datajack | -3/Testing | Hacked Power Sword | -3/Testing | Hacked Q-thruster | -3/Testing | Hacked Field Propulsion Array | -2/Research | Hacked Lgt. Quantum Reactor | -2/Research | Hacked Alien Tech Used ----------------- None Achievements -------------- Revolutionary Research Challenges ------------ None Game ------ Seed GravjetEnhancedMesh Manual? 0 Play Time 05:17:55 Cumulative 389.1 hours Start 2026.08.05 @ 14:44:05 End 2026.08.05 @ 20:15:56 Sessions 3 Manual Loads 0 Difficulty Rogue Special Mode None Game No. 224 Rogue 150 Adventurer 74 Explorer 0 Win Type - Total 18 Types 15/0/0/3/0/0/0/0/0/0 Lore% 79 Gallery% 69 Achievement% 55 Wizard Run 0 Options --------- Layout 2 ASCII 0 Keyboard 0 Movement Mouse Keybinds 0 Fullscreen 1 Font 32/SmallcapsGlow Map View 50x44 Zoom Use 0% Tactical HUD 1 Map Filters NONE Filters NONE Steam 1 RUN: 4dcbaa70-c28e-4a15-afbd-9e7ac2f00801